bitfinex/quotes_ETHUSD_20240601
["timestamp","ask_amount","ask_price","bid_price","bid_amount"]
[1717233579749,2.63501,3795.1,3794.6,2.4794]
[1717233579750,0.633,3794.9,3794.6,2.4794]
[1717233580796,3.26801,3795.1,3794.6,2.4794]
[1717233580967,2.63501,3795.1,3794.6,2.4794]
[1717233581293,2.63501,3795.1,3794.8,2.4794]
[1717233581654,0.04217296,3795.0,3794.8,2.4794]
[1717233581853,0.633,3795.3,3794.8,2.4794]
[1717233582354,0.0421939,3795.2,3794.8,2.4794]
[1717233582556,0.633,3795.3,3794.8,2.4794]
[1717233582751,0.0421939,3795.2,3794.8,2.4794]
[1717233582987,0.633,3795.3,3794.8,2.4794]
[1717233583161,0.0421939,3795.2,3794.8,2.4794]
[1717233583484,0.633,3795.3,3794.8,2.4794]
[1717233583650,0.04230652,3795.1,3794.8,2.4794]
[1717233583846,0.04231699,3795.2,3794.8,2.4794]
[1717233584063,0.04229605,3795.0,3794.8,2.4794]
[1717233584259,0.633,3795.3,3794.8,2.4794]
[1717233584475,0.04228558,3794.9,3794.8,2.4794]
[1717233584662,0.633,3795.3,3794.8,2.4794]
[1717233584879,0.04217047,3794.9,3794.8,2.4794]
[1717233585074,0.633,3795.1,3794.8,2.4794]
[1717233585277,0.04217047,3794.9,3794.8,2.4794]
[1717233585479,0.633,3795.1,3794.8,2.4794]
[1717233586117,0.04215711,3795.0,3794.8,2.4794]
[1717233592395,2.63513,3794.9,3794.5,2.3595]
[1717233592560,3.26813,3794.9,3794.5,2.3595]
[1717233592761,0.04184046,3794.8,3794.5,2.3595]
[1717233593582,0.61152372,3794.8,3794.5,2.3595]
[1717233593903,0.04184046,3794.8,3794.5,2.3595]
[1717233596458,3.26833,3794.6,3793.8,2.3595]
[1717233596659,0.633,3794.0,3793.9,0.41232972]
[1717233597089,0.67469414,3794.0,3793.9,0.41232972]
[1717233597505,0.67469414,3794.0,3793.5,7.43]
[1717233597708,0.633,3793.7,3793.5,7.43]
[1717233597872,0.633,3793.9,3793.4,2.3595]
[1717233598292,0.633,3793.7,3793.4,2.3595]
[1717233599734,0.633,3793.7,3793.1,2.3595]
[1717233600271,0.633,3793.3,3792.7,2.528283]
[1717233600512,0.633,3793.3,3792.8,0.9958283]
[1717233600718,0.04098776,3793.2,3792.8,1.40844238]
[1717233600924,2.63629,3793.2,3792.8,0.41261408]
[1717233601077,0.633,3792.9,3792.8,0.41261408]
[1717233601414,0.67392056,3792.9,3792.7,0.168783]
[1717233601616,0.633,3792.8,3792.7,0.168783]
[1717233601787,0.04092056,3792.9,3792.7,0.168783]
[1717233602119,0.21102933,3793.3,3792.7,0.168783]
[1717233602429,0.21102933,3793.3,3792.8,2.3249]
[1717233602590,0.04095201,3793.2,3792.9,0.2493683]
[1717233602797,0.21102933,3793.3,3792.9,0.2493683]
[1717233603306,0.04095201,3793.2,3792.9,0.2493683]
[1717233603472,0.21102933,3793.3,3792.9,0.2493683]
[1717233603677,0.21102933,3793.3,3792.7,0.168783]
[1717233603917,0.04095201,3793.2,3792.7,0.168783]
[1717233605012,0.04069803,3793.1,3792.7,0.168783]
[1717233605380,0.04068755,3793.0,3792.7,0.168783]
[1717233605580,0.21102933,3793.3,3792.7,0.168783]
[1717233605834,0.04070851,3793.2,3792.8,0.7895443]
[1717233606133,0.21102933,3793.3,3792.8,0.7895443]
[1717233606290,0.04069803,3793.1,3792.8,0.7895443]
[1717233606494,0.21102933,3793.3,3792.8,0.7895443]
[1717233606694,0.04069648,3793.0,3792.9,0.32832273]
[1717233606904,0.21102933,3793.3,3792.9,0.32832273]
[1717233607419,0.04072341,3793.2,3792.9,0.32832273]
[1717233607783,0.04073379,3793.1,3792.9,0.32832273]
[1717233608289,0.04072331,3793.0,3792.7,0.168783]
[1717233608753,0.84402933,3793.3,3792.7,0.168783]
[1717233608935,0.04073073,3792.9,3792.7,0.168783]
[1717233609230,0.84402933,3793.3,3792.7,0.4181513]
[1717233609602,0.633,3793.0,3792.7,0.168783]
[1717233609809,0.04059065,3792.9,3792.7,0.168783]
[1717233610034,0.633,3793.2,3792.7,0.168783]
[1717233610530,0.04058017,3792.8,3792.7,0.168783]
[1717233610697,0.633,3793.0,3792.7,0.168783]
[1717233610901,2.6365,3792.9,3792.7,0.168783]
[1717233611098,2.67709065,3792.9,3792.7,0.168783]
[1717233611329,3.31009065,3792.9,3792.7,0.168783]
[1717233614313,2.67709065,3792.9,3792.7,0.168783]
[1717233614714,0.04059065,3792.9,3792.8,2.3249]
[1717233615238,0.03958864,3792.9,3792.8,2.3249]
[1717233615613,0.21102933,3793.3,3792.8,2.3249]
[1717233615804,0.03962009,3793.2,3792.8,2.3249]
[1717233616141,0.21102933,3793.3,3792.8,2.6375683]
[1717233616378,0.03960961,3793.1,3792.8,2.6375683]
[1717233616573,0.21102933,3793.3,3792.8,2.6375683]
[1717233616574,0.03969162,3793.2,3792.8,2.6375683]
[1717233616742,0.21102933,3793.3,3792.8,2.6375683]
[1717233617079,0.03986151,3793.2,3792.9,0.34393513]
[1717233617386,0.03986151,3793.2,3792.8,2.6375683]
[1717233617567,0.21102933,3793.3,3792.8,2.6375683]
[1717233617968,0.03986151,3793.2,3792.8,2.6375683]
[1717233618483,0.21102933,3793.3,3792.8,2.6375683]
[1717233618870,0.03986151,3793.2,3792.8,2.6375683]
[1717233619051,0.03986151,3793.2,3792.8,2.3249]
[1717233619251,0.633,3793.2,3792.7,0.168783]
[1717233619458,0.03985103,3793.1,3792.7,0.168783]
[1717233620011,0.633,3793.0,3792.7,0.168783]
[1717233620139,0.03985103,3793.1,3792.7,0.168783]
[1717233620465,3.26933,3793.2,3792.7,0.168783]
[1717233620667,0.03984055,3793.0,3792.7,0.168783]
[1717233620864,0.03985103,3793.1,3792.7,0.168783]
[1717233621077,0.03983007,3792.9,3792.7,0.168783]
[1717233621385,0.633,3793.0,3792.7,0.168783]
[1717233621543,0.03981958,3792.8,3792.7,0.168783]
[1717233621743,0.633,3793.0,3792.7,0.168783]
[1717233621945,0.03981958,3792.8,3792.7,0.168783]
[1717233622170,0.633,3793.0,3792.7,0.168783]
[1717233622373,0.03981958,3792.8,3792.7,0.168783]
[1717233622588,2.63633,3793.2,3792.7,0.168783]
[1717233622754,0.03967052,3792.8,3792.7,0.168783]
[1717233622953,0.326933,3793.1,3792.7,0.168783]
[1717233623180,0.03967052,3792.8,3792.7,0.168783]
[1717233623386,0.959933,3793.1,3792.7,0.168783]
[1717233623862,0.03969148,3793.0,3792.7,0.168783]
[1717233624558,0.633,3793.4,3792.8,2.3769]
[1717233624749,0.03968697,3792.9,3792.8,2.3769]
[1717233624946,2.63598,3793.7,3792.8,2.3769]
[1717233625151,0.03968697,3792.9,3792.8,2.3769]
[1717233625360,2.63598,3793.7,3792.8,2.3769]
[1717233625679,0.633,3793.5,3792.8,2.3769]
[1717233625878,0.03976032,3793.6,3792.8,2.3769]
[1717233625879,2.43786032,3793.6,3792.8,2.3769]
[1717233626182,2.43786032,3793.6,3792.7,0.168783]
[1717233626183,0.633,3793.1,3792.7,0.168783]
[1717233626562,0.03942742,3793.0,3792.7,0.168783]
[1717233627388,0.03942742,3793.0,3792.8,2.3769]
[1717233627687,0.56991957,3793.4,3792.8,2.3769]
[1717233627886,0.03944974,3792.9,3792.8,2.3769]
[1717233628086,3.26913,3793.5,3792.8,2.3769]
[1717233628268,0.03944974,3792.9,3792.8,2.3769]
[1717233628460,3.26913,3793.5,3792.8,2.3769]
[1717233628662,0.03944974,3792.9,3792.8,2.3769]
[1717233628861,2.63613,3793.5,3792.8,2.3769]
[1717233629059,0.03944974,3792.9,3792.8,2.3769]
[1717233629257,3.26913,3793.5,3792.8,2.3769]
[1717233629457,0.03817108,3792.9,3792.8,2.3769]
[1717233629691,3.26913,3793.5,3792.8,2.3769]
[1717233630083,0.03822348,3793.4,3792.8,2.3769]
[1717233631599,0.70445253,3793.4,3792.7,0.168783]
[1717233632294,0.07145253,3793.4,3792.8,2.3769]
[1717233632987,1.20289486,3793.8,3792.8,2.3769]
[1717233633193,0.07149233,3793.3,3792.8,2.3769]
[1717233633388,1.20289486,3793.8,3792.8,2.3769]
[1717233633592,0.07148272,3793.2,3792.8,0.633]
[1717233633894,0.07147312,3793.1,3792.9,2.3769]
[1717233634290,0.56989486,3793.8,3792.9,2.3769]
[1717233634679,0.07156652,3793.7,3792.9,2.3769]
[1717233638021,0.70456652,3793.7,3792.9,2.3769]
[1717233638313,0.42744614,3793.6,3792.9,2.3769]
[1717233638700,0.0716202,3793.5,3792.9,2.3769]
[1717233639886,0.633,3793.3,3792.7,0.168783]
[1717233640318,0.0715586,3793.2,3792.7,0.168783]
[1717233640818,0.0715586,3793.2,3792.8,3.0099]
[1717233641020,0.0715586,3793.2,3792.9,0.5943683]
[1717233641221,0.633,3793.8,3792.9,0.5943683]
[1717233641527,0.07160661,3793.7,3792.8,3.0099]
[1717233641888,0.07160661,3793.7,3792.8,2.3769]
[1717233642221,0.633,3793.6,3792.8,2.3769]
[1717233642421,1.20290612,3793.6,3792.8,2.3769]
[1717233642592,0.0715874,3793.5,3792.8,2.3769]
[1717233642990,0.633,3793.2,3792.8,2.3769]
[1717233643186,0.46263375,3793.5,3792.8,2.3769]
[1717233643187,0.07159369,3793.1,3792.8,2.3769]
[1717233643501,1.20289924,3793.6,3792.8,2.3769]
[1717233643734,0.07158409,3793.0,3792.8,2.3769]
[1717233643903,1.20289924,3793.6,3792.8,2.3769]
[1717233644106,0.07147015,3792.9,3792.8,2.3769]
[1717233644301,0.56989924,3793.5,3792.8,2.3769]
[1717233644615,0.56989924,3793.6,3792.8,2.3769]
[1717233644919,3.0,3794.0,3792.8,5.01345]
[1717233644920,0.07152777,3793.5,3792.8,5.01345]
[1717233645089,0.07152777,3793.5,3792.9,2.3713]
[1717233645289,0.633,3793.8,3793.0,1.0951533]
[1717233645622,0.633,3793.8,3792.9,2.3713]
[1717233645920,1.65454509,3793.7,3792.9,2.3713]
[1717233646803,2.15287197,3793.6,3792.9,2.3713]
[1717233646998,1.58299215,3793.6,3792.9,2.3713]
[1717233647215,0.07153374,3793.5,3792.9,2.3713]
[1717233647413,0.07153374,3793.5,3792.9,3.2287633]
[1717233648115,1.58299215,3793.7,3793.0,2.3713]
[1717233648303,0.07161431,3793.4,3793.0,2.3713]
[1717233648485,1.58299215,3793.7,3793.0,2.3713]
[1717233648822,0.07160471,3793.3,3793.0,2.3713]
[1717233649011,1.58299215,3793.7,3793.0,3.03800963]
[1717233649629,0.07168418,3793.6,3793.0,2.3713]
[1717233650628,0.5698808,3793.7,3793.0,2.3713]
[1717233650925,0.0716693,3793.6,3793.0,2.3713]
[1717233651523,0.5698808,3793.7,3793.0,2.3713]
[1717233651709,0.0716597,3793.5,3793.0,2.3713]
[1717233651896,0.5698808,3793.7,3793.0,2.3713]
[1717233652093,0.07165009,3793.4,3793.0,2.3713]
[1717233652299,0.38387908,3793.6,3793.0,2.3713]
[1717233652498,0.07164049,3793.3,3793.0,2.3713]
[1717233652697,0.5698808,3793.7,3793.0,2.3713]
[1717233652936,0.07163089,3793.2,3793.0,2.3713]
[1717233653135,0.5698808,3793.7,3793.0,2.3713]
[1717233653331,0.07162128,3793.1,3793.0,2.3713]
[1717233653512,0.5698808,3793.7,3793.0,2.3713]
[1717233653864,0.0716693,3793.6,3793.0,2.3713]
[1717233656440,0.7046693,3793.6,3793.0,2.3713]
[1717233656595,1.2745501,3793.6,3793.0,2.3713]
[1717233656793,1.89448611,3793.6,3793.0,2.3713]
[1717233657019,0.5698808,3793.5,3793.0,2.3713]
[1717233657417,0.07123009,3793.4,3793.0,2.3713]
[1717233657640,0.07123009,3793.4,3792.7,0.168783]
[1717233659403,0.07123009,3793.4,3792.8,2.3713]
[1717233661810,0.569905,3793.5,3792.8,2.3713]
[1717233662007,0.07123009,3793.4,3792.8,2.3713]
[1717233663507,0.07123009,3793.4,3792.7,0.168783]
[1717233663921,0.64113826,3793.4,3792.7,0.168783]
[1717233664123,3.70480569,3793.4,3792.7,0.168783]
[1717233664343,0.56990817,3793.3,3792.7,0.168783]
[1717233664549,0.63864663,3793.3,3792.7,0.168783]
[1717233664745,2.63629,3793.2,3792.7,0.168783]
[1717233665046,0.56994331,3793.1,3792.7,0.168783]
[1717233665252,0.06870965,3793.0,3792.7,0.168783]
[1717233667246,2.6365,3792.9,3792.7,0.168783]
[1717233667614,0.63852275,3792.8,3792.7,0.168783]
[1717233668418,0.06852647,3792.8,3792.7,0.168783]
[1717233668977,0.6385291,3792.8,3792.7,0.168783]
[1717233669113,1.31078671,3792.8,3792.7,0.168783]
[1717233669313,0.74078408,3792.8,3792.7,0.168783]
[1717233674369,0.06852647,3792.8,3792.7,0.168783]
[1717233676066,2.42685408,3795.3,3792.7,0.168783]
[1717233676224,0.56999384,3794.4,3793.5,0.633]
[1717233676424,1.13996404,3794.4,3793.5,0.633]
[1717233676864,0.56999384,3794.4,3793.3,3.0327]
[1717233677037,0.56999384,3794.4,3793.4,1.309896]
[1717233677237,0.633,3794.3,3793.4,1.309896]
[1717233678531,0.56999384,3794.4,3793.4,1.309896]
[1717233678931,0.56999384,3794.4,3793.5,0.633]
[1717233679174,0.56999384,3794.4,3793.5,2.0738856]
[1717233682885,0.56999384,3794.4,3794.3,0.633]
[1717233684168,0.56999384,3794.4,3794.3,2.922]
[1717233687607,0.633,3795.2,3794.3,2.289]
[1717233687817,0.633,3794.7,3794.0,7.43]
[1717233688106,0.05360868,3794.6,3794.0,7.43]
[1717233689215,2.68899868,3794.6,3793.4,2.6361]
[1717233689397,2.68899868,3794.6,3793.8,0.633]
[1717233691417,2.68899868,3794.6,3793.8,0.9252]
[1717233692707,2.68899868,3794.6,3793.8,0.633]
[1717233692906,3.32199868,3794.6,3793.6,0.633]
[1717233693503,0.633,3793.9,3793.3,7.43]
[1717233694140,0.05342461,3793.8,3793.3,7.43]
[1717233694339,0.05342461,3793.8,3793.1,2.289]
[1717233694542,0.05342461,3793.8,3793.1,3.587849]
[1717233695420,0.05342461,3793.8,3793.1,1.298849]
[1717233695755,2.63561,3794.2,3793.1,1.298849]
[1717233695933,2.63561,3794.2,3792.9,2.63649]
[1717233696129,5.4728,3794.5,3792.9,2.63649]
[1717233696130,2.6358,3794.0,3792.9,2.63649]
[1717233696657,5.4728,3794.5,3792.8,7.43]
[1717233696658,2.63594,3793.8,3792.8,7.43]
[1717233696960,2.52581696,3793.9,3792.8,7.43]
[1717233696961,2.63602,3793.6,3792.8,7.43]
[1717233697328,0.05294906,3793.5,3792.8,7.43]
[1717233698357,2.63602,3793.6,3792.8,7.43]
[1717233699834,0.05287818,3793.5,3792.8,7.43]
[1717233700556,2.63569,3794.1,3792.8,7.43]
[1717233700557,3.0,3794.0,3792.8,7.43]
[1717233700733,3.0,3794.0,3792.9,0.9887783]
[1717233700934,0.05295832,3793.9,3792.9,0.9887783]
[1717233703741,0.05295832,3793.9,3793.0,2.4694]
[1717233704866,0.05295832,3793.9,3793.1,2.63635]
[1717233705067,2.63569,3794.1,3793.1,2.63635]
[1717233705370,0.05299311,3794.0,3793.2,0.60945283]
[1717233713280,0.05299311,3794.0,3793.0,2.4694]
[1717233713484,2.40219311,3794.0,3793.0,2.4694]
[1717233713856,2.63589,3793.8,3793.0,2.4694]
[1717233714293,0.053015,3793.7,3793.0,2.4694]
[1717233717790,0.053015,3793.7,3793.1,0.634]
[1717233717992,0.053015,3793.7,3793.1,1.68734]
[1717233720107,0.05285336,3793.6,3793.1,1.68734]
[1717233720603,0.634,3794.1,3793.1,1.68734]
[1717233720801,0.0528676,3793.5,3793.1,1.68734]
[1717233721105,0.634,3794.1,3793.2,0.415674]
[1717233721106,0.052858,3793.4,3793.2,0.415674]
[1717233721475,0.634,3793.9,3793.1,1.05334]
[1717233721689,0.634,3793.9,3793.0,2.4694]
[1717233722002,0.0529143,3793.8,3793.0,2.4694]
[1717233722299,0.634,3793.5,3792.8,7.43]
[1717233722599,0.05291762,3793.4,3792.8,7.43]
[1717233722799,0.05291762,3793.4,3792.8,8.02000685]
[1717233723007,0.05291762,3793.4,3792.8,0.59000685]
[1717233725083,0.634,3793.5,3792.8,0.59000685]
[1717233725670,0.05291762,3793.4,3792.8,0.59000685]
[1717233726120,0.05291762,3793.4,3792.7,0.168783]
[1717233726276,2.63617,3793.4,3792.7,0.168783]
[1717233726479,0.05276491,3793.3,3792.7,0.168783]
[1717233731388,3.27031,3793.2,3792.7,0.168783]
[1717233731590,2.4148,3793.1,3792.7,0.168783]
[1717233731905,0.634,3792.9,3792.7,0.168783]
[1717233732271,0.05252606,3792.8,3792.7,0.168783]
[1717233735419,2.46732606,3792.8,3792.7,0.168783]
[1717233735586,5.46732606,3792.8,3792.7,0.168783]
[1717233741406,3.10132606,3792.8,3792.7,0.168783]
[1717233741606,6.10132606,3792.8,3792.7,0.168783]
[1717233741820,6.71145867,3792.8,3792.7,0.168783]
[1717233742407,3.05252606,3792.8,3792.7,0.168783]
[1717233743744,0.05252606,3792.8,3792.7,0.168783]
[1717233744120,2.63631,3793.2,3792.8,2.3765]
[1717233747102,0.05043647,3793.1,3792.8,2.3765]
[1717233747320,0.05043647,3793.1,3792.9,0.2545283]
[1717233747525,0.634,3793.6,3792.9,0.2545283]
[1717233747721,0.05042687,3793.0,3792.9,0.2545283]
[1717233747948,0.634,3793.6,3792.9,0.2545283]
[1717233748156,0.05044477,3793.0,3792.9,0.2545283]
[1717233748552,3.634,3793.6,3792.9,0.2545283]
[1717233748853,0.05044477,3793.0,3792.8,2.3765]
[1717233749056,3.634,3793.6,3792.8,2.3765]
[1717233749531,2.63598,3793.7,3792.8,2.3765]
[1717233749854,0.0505024,3793.6,3792.8,2.3765]
[1717233754426,2.63578,3794.0,3792.8,2.3765]
[1717233754631,0.05104351,3793.5,3792.9,0.7946893]
[1717233754817,3.0,3793.9,3792.9,0.7946893]
[1717233755017,0.05104286,3793.4,3792.9,0.7946893]
[1717233755256,3.0,3793.9,3793.0,0.59765823]
[1717233755466,0.05103325,3793.3,3793.0,0.59765823]
[1717233755669,3.0,3793.9,3793.0,0.59765823]
[1717233755964,0.05102365,3793.2,3793.0,0.59765823]
[1717233756165,3.0,3793.9,3793.0,0.59765823]
[1717233756534,0.05101404,3793.1,3793.0,0.59765823]
[1717233756733,2.63588,3793.8,3793.0,0.59765823]
[1717233757270,0.05100309,3793.7,3793.0,0.59765823]
[1717233757870,0.05100309,3793.7,3793.1,0.29741582]
[1717233760373,2.63602,3793.6,3792.8,2.3765]
[1717233760779,2.68700454,3793.6,3792.8,2.3765]
[1717233762940,2.63602,3793.6,3792.8,2.3765]
[1717233765154,0.05106738,3793.5,3792.8,2.3765]
[1717233768962,2.63623,3793.3,3792.8,2.3765]
[1717233769368,0.05099981,3793.2,3792.8,2.3765]
[1717233769570,2.63623,3793.3,3792.8,2.3765]
[1717233769768,0.05099981,3793.2,3792.8,2.3765]
[1717233770078,2.63623,3793.3,3792.8,2.3765]
[1717233770274,0.0509902,3793.1,3792.8,2.3765]
[1717233770444,0.05099981,3793.2,3792.8,2.3765]
[1717233770644,2.63623,3793.3,3792.8,2.3765]
[1717233770903,0.05099981,3793.2,3792.7,0.168783]
[1717233771252,2.63623,3793.3,3792.7,0.168783]
[1717233771507,0.05099981,3793.2,3792.7,0.168783]
[1717233771991,3.27123,3793.3,3792.7,0.168783]
[1717233772146,0.05091334,3793.2,3792.7,0.168783]
[1717233784295,2.33271334,3793.2,3792.7,0.168783]
[1717233786464,2.6364,3793.1,3792.7,0.168783]
[1717233786665,0.635,3792.9,3792.7,0.168783]
[1717233786860,0.04908021,3792.8,3792.7,0.168783]
[1717233799347,2.33088021,3792.8,3792.7,0.168783]
[1717233799748,2.90092428,3792.8,3792.7,0.168783]
[1717233800040,3.81815671,3792.8,3792.7,0.168783]
[1717233804679,6.81815671,3792.8,3792.7,0.168783]
[1717233805987,7.36815671,3792.8,3792.7,0.168783]
[1717233808584,6.81815671,3792.8,3792.7,0.168783]
[1717233808784,7.45315671,3792.8,3792.7,0.168783]
[1717233811015,7.45322898,3792.8,3792.7,0.168783]
[1717233811179,8.00322898,3792.8,3792.7,0.168783]
[1717233813930,10.76822898,3792.8,3792.7,0.168783]
[1717233814225,10.7683366,3792.8,3792.7,0.168783]
[1717233815729,4.5365366,3792.8,3792.7,3e-06]
[1717233815895,5.1715366,3792.8,3792.7,3e-06]
[1717233817031,2.1715366,3792.8,3792.7,3e-06]
[1717233817195,5.1715366,3792.8,3792.7,3e-06]
[1717233817507,2.1715366,3792.8,3792.7,3e-06]
[1717233819934,1.60131264,3792.8,3792.7,3e-06]
[1717233820253,2.72149166,3792.8,3792.7,3e-06]
[1717233820410,5.72149166,3792.8,3792.7,3e-06]
[1717233821521,5.15131264,3792.8,3792.7,3e-06]
[1717233821702,2.72149898,3792.8,3792.7,3e-06]
[1717233821910,5.72149898,3792.8,3792.7,3e-06]
[1717233822309,4.53649898,3792.8,3792.7,3e-06]
[1717233822503,5.17149898,3792.8,3792.7,3e-06]
[1717233822743,2.17149898,3792.8,3792.7,3e-06]
[1717233823852,2.72149898,3792.8,3792.7,3e-06]
[1717233824052,5.72149898,3792.8,3792.7,3e-06]
[1717233825249,5.72150132,3792.8,3792.7,3e-06]
[1717233831340,5.17150132,3792.8,3792.7,3e-06]
[1717233831740,5.28131285,3792.8,3792.7,3e-06]
[1717233831953,2.96027185,3792.8,3792.7,3e-06]
[1717233832152,5.96027185,3792.8,3792.7,3e-06]
[1717233832794,5.41027185,3792.8,3792.7,3e-06]
[1717233833088,0.43084072,3792.8,3792.7,2.359003]
[1717233833250,0.043959,3792.8,3792.7,2.359003]
[1717233836985,3.0,3793.0,3792.7,2.359003]
[1717233837615,0.03847887,3792.9,3792.7,2.359003]
[1717233837807,0.03847887,3792.9,3792.8,0.2359003]
[1717233838782,0.03847887,3792.9,3792.8,2.5949003]
[1717233839212,2.6364,3793.1,3792.8,2.5949003]
[1717233839423,0.03903466,3792.9,3792.8,2.5949003]
[1717233839609,2.6364,3793.1,3792.8,2.5949003]
[1717233839808,0.03903466,3792.9,3792.8,2.359]
[1717233840290,2.6364,3793.1,3792.8,2.359]
[1717233840497,0.03904427,3793.0,3792.8,2.359]
[1717233841212,0.67404427,3793.0,3792.8,2.359]
[1717233842739,0.03904427,3793.0,3792.8,2.359]
[1717233842944,0.03904427,3793.0,3792.9,0.2359003]
[1717233842945,0.67404427,3793.0,3792.9,0.2359003]
[1717233843145,0.67404427,3793.0,3792.8,2.3365]
[1717233844208,0.03904427,3793.0,3792.8,2.3365]
[1717233847253,0.03905857,3792.9,3792.8,2.3365]
[1717233847420,0.635,3793.4,3792.8,2.5701503]
[1717233847619,0.03909794,3793.3,3792.8,2.5701503]
[1717233848621,0.635,3793.0,3792.8,2.5701503]
[1717233848935,0.03908342,3792.9,3792.8,2.5701503]
[1717233849142,0.03908342,3792.9,3792.8,2.3365]
[1717233849865,2.63657,3792.8,3792.7,3e-06]
[1717233850063,3.31064979,3792.8,3792.7,3e-06]
[1717233856083,6.31064979,3792.8,3792.7,3e-06]
[1717233856268,6.94171477,3792.8,3792.7,3e-06]
[1717233857272,7.51179568,3792.8,3792.7,3e-06]
[1717233857473,6.94171477,3792.8,3792.7,3e-06]
[1717233858281,7.51179363,3792.8,3792.7,3e-06]
[1717233858966,6.94171477,3792.8,3792.7,3e-06]
[1717233859168,7.5117904,3792.8,3792.7,3e-06]
[1717233869099,9.9564904,3792.8,3792.7,3e-06]
[1717233869990,7.5117904,3792.8,3792.7,3e-06]
[1717233870807,6.88072542,3792.8,3792.7,3e-06]
[1717233871703,6.24572542,3792.8,3792.7,3e-06]
[1717233871907,6.88072542,3792.8,3792.7,3e-06]
[1717233873193,6.24572542,3792.8,3792.7,3e-06]
[1717233873610,6.88072542,3792.8,3792.7,3e-06]
[1717233876275,7.81327493,3792.8,3792.7,3e-06]
[1717233878922,6.88073239,3792.8,3792.7,3e-06]
[1717233879081,6.24573239,3792.8,3792.7,3e-06]
[1717233882396,6.88073239,3792.8,3792.7,3e-06]
[1717233882802,6.88071896,3792.8,3792.7,3e-06]
[1717233882987,6.24571896,3792.8,3792.7,3e-06]
[1717233883314,6.88071896,3792.8,3792.7,3e-06]
[1717233886506,6.24571896,3792.8,3792.7,2.5033933]
[1717233886695,2.67564979,3792.8,3792.7,2.5033933]
[1717233887300,0.03907979,3792.8,3792.7,2.5033933]
[1717233888001,0.0379733,3792.8,3792.7,2.5033933]
[1717233888521,0.57001709,3793.1,3792.7,2.5033933]
[1717233888824,0.57001709,3793.1,3792.7,2.262203]
[1717233889024,0.03799251,3793.0,3792.7,2.262203]
[1717233890739,0.67299251,3793.0,3792.7,2.262203]
[1717233892417,0.03799251,3793.0,3792.7,2.262203]
[1717233893031,0.03798291,3792.9,3792.7,2.262203]
[1717233893191,0.03798291,3792.9,3792.8,2.5519203]
[1717233893394,2.63626,3793.3,3792.8,2.5519203]
[1717233893914,0.03827472,3793.2,3792.8,2.5519203]
[1717233894318,2.63626,3793.3,3792.8,2.5519203]
[1717233894493,0.03827472,3793.2,3792.9,0.25519233]
[1717233894695,2.63626,3793.3,3792.9,0.25519233]
[1717233895094,0.03827472,3793.2,3792.9,0.25519233]
[1717233895526,2.63626,3793.3,3792.9,0.25519233]
[1717233895829,0.635,3793.5,3793.0,2.2622]
[1717233896029,0.635,3793.5,3792.7,3e-06]
[1717233896030,0.03827472,3793.2,3793.1,0.25173923]
[1717233896242,0.635,3793.3,3792.7,3e-06]
[1717233896528,0.03827472,3793.2,3792.8,2.2622]
[1717233896732,0.03827472,3793.2,3792.9,0.2262203]
[1717233896951,0.03826511,3793.1,3792.9,0.2262203]
[1717233897234,0.635,3793.3,3793.0,2.2622]
[1717233897600,0.03827472,3793.2,3793.0,2.2622]
[1717233898002,0.635,3793.5,3793.0,2.2622]
[1717233898340,0.03826511,3793.1,3793.0,2.2622]
[1717233898544,0.635,3793.5,3793.0,2.2622]
[1717233898720,0.03829392,3793.4,3793.1,0.22622]
[1717233901854,0.03829392,3793.4,3793.2,2.2622]
[1717233902015,5.8260292,3793.8,3793.2,2.2622]
[1717233902216,0.03852634,3793.3,3793.2,2.2622]
[1717233902411,5.8260292,3793.8,3793.2,2.2622]
[1717233902650,2.8260292,3793.8,3793.4,2.4608]
[1717233904855,0.1900992,3793.8,3793.4,2.4608]
[1717233906612,0.635,3794.1,3793.4,2.4608]
[1717233907513,0.635,3794.2,3793.4,2.4608]
[1717233907834,5.63557,3794.3,3793.4,2.4608]
[1717233908028,0.635,3794.1,3793.6,2.4608]
[1717233909051,2.63557,3794.3,3793.6,2.4608]
[1717233909860,0.03884571,3794.2,3793.6,2.4608]
[1717233913027,0.03884571,3794.2,3793.7,0.635]
[1717233913214,0.03884571,3794.2,3793.8,3.07397642]
[1717233913557,0.635,3794.7,3793.8,3.07397642]
[1717233913851,0.03929918,3794.6,3793.8,3.07397642]
[1717233914066,0.03929918,3794.6,3794.0,2.4608]
[1717233914357,3.635,3795.0,3794.0,2.4608]
[1717233914661,3.635,3795.0,3794.2,2.4608]
[1717233914662,0.635,3794.8,3794.2,2.4608]
[1717233915023,0.03930877,3794.7,3794.2,2.4608]
[1717233915537,0.635,3794.9,3794.2,2.4608]
[1717233915720,0.635,3794.9,3794.4,2.4608]
[1717233915921,0.03931837,3794.8,3794.4,2.4608]
[1717233917642,3.0,3795.0,3794.4,2.4608]
[1717233917948,0.03936251,3794.7,3794.4,2.4608]
[1717233918151,3.0,3795.0,3794.4,2.4608]
[1717233918329,3.0,3795.0,3794.5,0.27703283]
[1717233918736,0.0393817,3794.9,3794.5,0.27703283]
[1717233919155,0.6743817,3794.9,3794.5,0.27703283]
[1717233922659,0.0393817,3794.9,3794.6,2.3792]
[1717233925164,0.0393817,3794.9,3794.7,0.635]
[1717233925326,3.26967,3795.6,3794.8,2.70832328]
[1717233926028,0.635,3795.4,3794.8,2.70832328]
[1717233927160,0.03956934,3795.3,3794.8,2.70832328]
[1717233928358,3.0,3795.5,3794.8,2.70832328]
[1717233928562,0.03873099,3795.2,3794.8,2.70832328]
[1717233928750,3.0,3795.5,3795.0,2.3792]
[1717233928950,0.03872139,3795.1,3795.0,2.3792]
[1717233929129,0.635,3795.4,3795.0,2.3792]
[1717233929465,3.0,3795.5,3795.0,2.3792]
[1717233929641,0.03874058,3795.3,3795.0,2.3792]
[1717233929848,3.635,3795.5,3795.1,0.27135323]
[1717233929849,0.03875017,3795.4,3795.1,0.27135323]